bitfinex/quotes_SOLUSD_20250728
["timestamp","ask_amount","ask_price","bid_price","bid_amount"]
[1753670323239,78.89509084,191.07,191.06,1e-08]
[1753670323445,78.89509084,191.07,191.03,0.06]
[1753670323446,16.92684554,191.06,191.03,0.06]
[1753670323651,36.89268249,191.04,191.03,0.06]
[1753670323955,40.70760762,191.04,191.03,0.06]
[1753670324148,46.66211348,191.04,191.03,0.06]
[1753670324348,46.80427505,191.04,191.03,0.06]
[1753670324936,46.94643662,191.04,191.03,0.06]
[1753670325155,87.80643662,191.04,191.03,0.06]
[1753670325333,88.33339031,191.04,191.03,0.06]
[1753670325531,26.0,191.0,190.91,0.87]
[1753670325732,10.89268249,190.95,190.91,0.87]
[1753670325953,45.40187882,190.94,190.91,0.87]
[1753670326156,3.81492513,190.93,190.92,0.67]
[1753670327054,44.87492513,190.93,190.92,16.80047842]
[1753670327468,44.87492513,190.93,190.92,0.67]
[1753670327644,3.81492513,190.93,190.92,5.90779593]
[1753670327838,3.81492513,190.93,190.92,33.58516239]
[1753670329139,0.52695369,191.05,190.96,42.78468397]
[1753670329360,41.04,191.04,191.0,10.89268249]
[1753670329565,0.52695369,191.03,191.0,10.89268249]
[1753670329766,0.52695369,191.03,191.01,0.67]
[1753670329950,4.39903994,191.03,191.01,0.67]
[1753670330146,0.52695369,191.03,191.01,0.67]
[1753670330643,0.52695369,191.03,190.99,0.67]
[1753670330835,0.52695369,191.03,190.98,10.89268249]
[1753670330836,0.52695369,191.03,191.0,0.67]
[1753670331054,4.40662319,191.03,191.01,0.67]
[1753670331458,4.40662319,191.03,190.98,11.56268249]
[1753670331657,0.52695369,191.03,190.99,11.56268249]
[1753670331879,0.55695369,191.07,191.01,16.78468397]
[1753670332096,0.55695369,191.07,191.04,10.89268249]
[1753670332293,41.15,191.07,191.05,10.89268249]
[1753670332586,41.15,191.07,190.99,27.5894]
[1753670332587,0.03,191.07,191.06,0.67]
[1753670332788,0.03,191.07,191.06,11.56268249]
[1753670333785,0.03,191.07,191.06,28.34736646]
[1753670334719,0.03,191.07,191.06,0.67]
[1753670334867,0.03,191.07,191.05,10.89268249]
[1753670335052,0.03,191.07,191.03,0.7]
[1753670335457,41.0,191.06,191.03,10.89268249]
[1753670335677,41.0,191.06,191.05,10.89268249]
[1753670335888,41.0,191.06,191.05,11.59268249]
[1753670336484,0.03,191.07,191.05,11.59268249]
[1753670336666,0.03,191.07,191.06,11.59268249]
[1753670336888,0.03,191.07,191.06,28.37736646]
[1753670338365,0.03,191.07,191.06,33.61132437]
[1753670339191,0.03,191.07,191.06,33.89564751]
[1753670340805,0.03,191.07,191.06,34.4190433]
[1753670341301,0.03,191.07,191.06,33.89564751]
[1753670342509,0.03,191.07,191.06,33.61132437]
[1753670342708,0.03,191.07,191.06,74.67564751]
[1753670342889,40.78,191.17,191.1,16.78468397]
[1753670343084,40.78,191.17,191.16,10.89268249]
[1753670344506,40.78,191.17,191.16,27.67736646]
[1753670344701,46.52683888,191.21,191.16,11.59268249]
[1753670344905,46.52683888,191.21,191.19,10.89268249]
[1753670345422,46.52683888,191.21,191.18,10.89268249]
[1753670346130,46.52683888,191.21,191.15,0.7]
[1753670346131,47.18683888,191.21,191.16,16.78468397]
[1753670346321,46.52683888,191.21,191.18,10.89268249]
[1753670346504,0.03,191.21,191.2,27.67736646]
[1753670346825,0.03,191.21,191.2,28.37736646]
[1753670347029,0.03,191.21,191.2,33.89181512]
[1753670347201,0.03,191.21,191.2,17.48468397]
[1753670347406,0.03,191.21,191.2,34.41482767]
[1753670347603,0.03,191.21,191.2,45.30751016]
[1753670348029,0.03,191.21,191.2,35.97712767]
[1753670348329,0.03,191.21,191.19,10.89268249]
[1753670348508,0.69,191.21,191.18,16.78468397]
[1753670348702,5.25994807,191.21,191.17,10.89268249]
[1753670348946,5.25994807,191.21,191.14,0.7]
[1753670348947,1.18695369,191.2,191.14,26.7]
[1753670349243,0.52695369,191.2,191.17,10.89268249]
[1753670349409,0.52695369,191.2,191.18,10.89268249]
[1753670349753,1.18695369,191.2,191.14,10.89268249]
[1753670349929,1.18695369,191.2,191.11,0.7]
[1753670349930,10.89268249,191.17,191.11,10.89268249]
[1753670350145,41.26,191.19,191.08,0.7]
[1753670350146,12.07963618,191.16,191.1,10.89268249]
[1753670350446,0.52695369,191.16,191.13,10.89268249]
[1753670350650,5.23094627,191.17,191.13,10.89268249]
[1753670350926,0.52695369,191.16,191.14,10.89268249]
[1753670351501,0.52695369,191.16,191.15,10.89268249]
[1753670351700,0.52695369,191.19,191.15,10.89268249]
[1753670351933,0.55695369,191.21,191.16,16.78468397]
[1753670352127,0.55695369,191.21,191.18,10.89268249]
[1753670352311,0.55695369,191.21,191.19,10.89268249]
[1753670352838,5.25989885,191.21,191.19,10.89268249]
[1753670353045,0.52695369,191.2,191.19,10.89268249]
[1753670353821,1.18695369,191.2,191.13,26.0]
[1753670354029,10.89268249,191.16,191.09,16.78468397]
[1753670354224,10.89268249,191.16,191.08,0.7]
[1753670354225,1.18695369,191.15,191.1,10.89268249]
[1753670354524,1.18695369,191.15,191.08,0.7]
[1753670354525,1.18695369,191.15,191.11,10.89268249]
[1753670354846,5.23176729,191.14,191.11,10.89268249]
[1753670355038,0.52695369,191.14,191.11,10.89268249]
[1753670356149,0.52695369,191.14,191.08,10.89268249]
[1753670356150,11.41963618,191.14,191.08,10.89268249]
[1753670356337,10.89268249,191.1,191.04,10.89268249]
[1753670356550,1.18695369,191.09,191.03,10.89268249]
[1753670356745,5.23341009,191.08,191.03,10.89268249]
[1753670356930,5.23341009,191.08,191.01,5.93531219]
[1753670356931,0.52695369,191.07,191.04,10.89268249]
[1753670357329,0.52695369,191.09,191.06,10.89268249]
[1753670357545,0.52695369,191.09,191.07,10.89268249]
[1753670358151,40.38,191.1,191.08,10.89268249]
[1753670358955,40.38,191.1,191.07,10.89268249]
[1753670359140,0.52695369,191.09,191.07,10.89268249]
[1753670359633,30.52695369,191.09,191.07,10.89268249]
[1753670359833,30.0,191.09,191.07,10.89268249]
[1753670360842,30.0,191.09,191.08,10.89268249]
[1753670361257,40.38,191.1,191.08,10.89268249]
[1753670361462,40.38,191.1,191.05,16.78468397]
[1753670361650,10.89268249,191.06,191.0,16.78468397]
[1753670361847,11.41963618,191.05,191.0,16.78468397]
[1753670362145,11.41963618,191.05,190.99,11.59268249]
[1753670362146,1.18695369,191.05,190.99,11.59268249]
[1753670362566,12.07963618,191.05,190.99,36.89268249]
[1753670362744,12.07963618,191.05,190.99,10.89268249]
[1753670363048,1.18695369,191.05,191.0,10.89268249]
[1753670363439,12.07963618,191.05,191.0,10.89268249]
[1753670363869,1.18695369,191.05,191.0,10.89268249]
[1753670364043,6.4212309,191.05,191.0,10.89268249]
[1753670364785,0.66,191.04,191.0,10.89268249]
[1753670364953,0.52695369,191.03,191.0,10.89268249]
[1753670365758,0.52695369,191.03,190.98,31.99608925]
[1753670365947,5.23477987,191.03,190.98,26.73]
[1753670366144,0.52695369,191.02,191.0,10.89268249]
[1753670366345,0.52695369,191.04,191.0,10.89268249]
[1753670366773,5.76146704,191.04,191.0,10.89268249]
[1753670367070,11.56268249,191.03,190.98,0.06]
[1753670367273,40.90695369,191.02,190.98,0.06]
[1753670367766,40.90695369,191.02,191.0,10.89268249]
[1753670367767,40.82695369,191.02,191.0,10.89268249]
[1753670368270,40.82695369,191.02,190.99,11.56268249]
[1753670368597,40.82695369,191.02,190.98,0.06]
[1753670368783,40.82695369,191.02,191.0,10.89268249]
[1753670369185,0.67,191.01,190.98,0.06]
[1753670369491,0.52695369,191.0,190.98,0.06]
[1753670369687,0.52695369,191.0,190.98,10.95268249]
[1753670369871,0.52695369,191.01,190.99,10.89268249]
[1753670370072,40.3,191.02,191.0,10.89268249]
[1753670370500,0.52695369,191.04,191.01,11.56268249]
[1753670370802,40.78695369,191.04,191.02,10.89268249]
[1753670371976,40.78695369,191.04,191.03,10.89268249]
[1753670372194,5.23204101,191.13,191.04,16.78468397]
[1753670372381,0.52695369,191.12,191.11,10.89268249]
[1753670372682,71.39695369,191.12,191.08,10.89268249]
[1753670372903,0.67,191.11,191.08,10.89268249]
[1753670373198,0.52695369,191.1,191.09,10.89268249]
[1753670373902,40.68695369,191.13,191.09,11.56268249]
[1753670374197,0.03,191.12,191.11,10.89268249]
[1753670374506,0.7,191.12,191.1,10.89268249]
[1753670374677,0.52695369,191.11,191.1,10.89268249]
[1753670375001,0.52695369,191.11,191.06,0.73]
[1753670375002,0.52695369,191.11,191.08,10.89268249]
[1753670375205,0.52695369,191.11,191.09,10.89268249]
[1753670375588,5.75954225,191.11,191.1,10.89268249]
[1753670376190,0.52695369,191.11,191.1,10.89268249]
[1753670376500,5.75954225,191.11,191.09,10.89268249]
[1753670377001,0.67,191.1,191.08,10.89268249]
[1753670377178,0.52695369,191.09,191.08,10.89268249]
[1753670377379,0.52695369,191.1,191.08,10.89268249]
[1753670377580,0.52695369,191.1,191.06,0.06]
[1753670377800,0.52695369,191.1,191.07,0.67]
[1753670378099,5.7893201,191.12,191.09,10.89268249]
[1753670378401,5.7893201,191.12,191.1,10.89268249]
[1753670378802,0.55695369,191.12,191.11,7.23515014]
[1753670379226,0.03,191.12,191.11,24.68983411]
[1753670379506,0.03,191.12,191.11,29.92242267]
[1753670380578,0.03,191.12,191.11,24.68983411]
[1753670380778,0.03,191.12,191.06,0.73]
[1753670380779,45.89231477,191.12,191.06,0.73]
[1753670381002,0.52695369,191.11,191.06,0.06]
[1753670381309,40.1,191.1,191.09,7.23515014]
[1753670381622,40.1,191.1,191.08,7.23515014]
[1753670381817,40.1,191.1,191.09,7.23515014]
[1753670381986,40.1,191.1,191.06,16.84468397]
[1753670382188,40.1,191.1,191.08,7.23515014]
[1753670382588,40.1,191.1,191.06,17.51468397]
[1753670382896,40.1,191.1,191.06,22.74860475]
[1753670383207,0.52695369,191.11,191.09,24.01983411]
[1753670383408,0.03,191.12,191.1,24.01983411]
[1753670383625,0.03,191.12,191.11,56.58784309]
[1753670383833,0.03,191.12,191.11,51.21309296]
[1753670384004,0.03,191.12,191.11,50.68983411]
[1753670384206,0.03,191.12,191.11,55.92242267]
[1753670384528,0.03,191.16,191.13,0.28432314]
[1753670384709,0.03,191.16,191.15,24.01983411]
[1753670384910,0.03,191.16,191.15,24.68983411]
[1753670386622,0.03,191.16,191.15,29.9213277]
[1753670386830,0.03,191.16,191.15,33.59161095]
[1753670388825,0.03,191.16,191.15,33.87593409]
[1753670389531,0.03,191.16,191.15,34.39908344]
[1753670392915,0.03,191.17,191.16,17.06900711]
[1753670393111,0.03,191.17,191.16,28.6444405]
[1753670393314,0.03,191.17,191.16,68.4644405]
[1753670393514,0.03,191.2,191.19,26.0]
[1753670393718,0.1,191.23,191.22,42.78468397]
[1753670393921,0.1,191.23,191.22,65.40283173]
[1753670394224,0.1,191.23,191.22,105.89283173]
[1753670394806,0.1,191.23,191.22,111.12241022]
[1753670398227,0.03,191.25,191.24,0.28432314]
[1753670398532,0.03,191.25,191.23,16.78468397]
[1753670398533,5.25876929,191.25,191.23,10.90543339]
[1753670398714,5.25876929,191.25,191.22,36.90543339]
[1753670398918,0.03,191.25,191.24,10.90543339]
[1753670399140,0.03,191.25,191.24,68.21302051]
[1753670399641,0.03,191.25,191.24,68.88302051]
[1753670399936,0.03,191.25,191.24,74.39637523]
[1753670400441,0.1,191.31,191.28,42.78468397]
[1753670400633,0.1,191.31,191.3,27.69011736]
[1753670401435,0.1,191.31,191.3,10.90543339]
[1753670401616,5.99731169,191.31,191.28,16.78468397]
[1753670401819,5.32731169,191.31,191.3,10.90543339]
[1753670402015,5.32731169,191.31,191.29,10.90543339]
[1753670402414,0.67,191.3,191.29,10.90543339]
[1753670402616,0.67,191.3,191.28,16.78468397]
[1753670402809,0.1,191.31,191.29,50.90543339]
[1753670403014,0.1,191.31,191.3,28.49717965]
[1753670403234,0.1,191.31,191.3,29.16717965]
[1753670403940,0.1,191.31,191.3,28.49717965]
[1753670404246,0.1,191.31,191.3,98.89750889]
[1753670405442,0.1,191.31,191.3,100.37457118]
[1753670406016,0.1,191.31,191.3,94.11285651]
[1753670406223,0.1,191.31,191.3,99.34024804]
[1753670406550,0.1,191.31,191.3,54.21285651]
[1753670406733,5.99711828,191.31,191.26,10.90543339]
[1753670406922,5.99711828,191.31,191.19,0.67]
[1753670406923,12.10238708,191.3,191.25,50.78543339]
[1753670407244,0.67,191.29,191.26,10.90543339]
[1753670407455,0.67,191.28,191.26,10.90543339]
[1753670407619,0.52695369,191.3,191.26,10.90543339]
[1753670407823,0.67,191.27,191.26,10.90543339]
[1753670408029,0.52695369,191.3,191.26,10.90543339]
[1753670408231,0.1,191.31,191.3,16.78468397]
[1753670408446,30.1,191.31,191.3,67.69011736]
[1753670408656,0.1,191.31,191.3,67.69011736]
[1753670408851,0.1,191.31,191.3,64.00018039]
[1753670409645,0.1,191.31,191.3,7.21549642]
[1753670409854,0.77,191.31,191.3,39.98]
[1753670410044,0.77,191.31,191.3,47.19549642]
[1753670410345,0.1,191.31,191.3,69.87757192]
[1753670410650,0.1,191.31,191.3,69.20757192]
[1753670410834,0.1,191.31,191.3,70.16189506]
[1753670411345,0.1,191.31,191.3,29.22757192]
[1753670411549,0.1,191.31,191.3,95.16757192]
[1753670411750,0.1,191.31,191.3,89.94018039]
[1753670412127,0.1,191.31,191.3,50.00018039]
[1753670412452,0.77,191.31,191.29,39.92]
[1753670412624,0.1,191.31,191.3,24.00018039]
[1753670413367,0.77,191.31,191.28,24.00018039]
[1753670413538,0.77,191.31,191.28,7.21549642]
[1753670413744,0.67,191.3,191.28,7.21549642]
[1753670413958,0.1,191.31,191.29,7.21549642]
[1753670414163,0.1,191.31,191.3,7.21549642]
[1753670414547,0.77,191.31,191.29,7.21549642]
[1753670414744,0.77,191.31,191.3,7.21549642]
[1753670415078,0.1,191.31,191.28,62.05255925]
[1753670415388,0.1,191.31,191.3,24.00018039]
[1753670415667,0.67,191.3,191.18,1.5746]
[1753670415886,13.54319642,191.28,191.22,7.21549642]
[1753670416042,13.54319642,191.28,191.2,7.21549642]
[1753670416043,7.21549642,191.26,191.2,7.21549642]
[1753670416233,7.21549642,191.26,191.14,2.2644]
[1753670416234,7.21549642,191.23,191.17,7.21549642]
[1753670416442,7.21549642,191.23,191.17,47.51549642]
[1753670416443,1.19695369,191.22,191.17,47.51549642]
[1753670416757,0.67,191.25,191.21,7.21549642]
[1753670416943,0.67,191.24,191.22,7.21549642]
[1753670417135,0.67,191.24,191.2,57.06468397]
[1753670417136,0.67,191.23,191.21,7.21549642]
[1753670417547,0.67,191.23,191.22,7.21549642]
[1753670417939,12.44375863,191.27,191.23,16.78468397]
[1753670417940,0.67,191.27,191.23,16.78468397]
[1753670418148,7.9594,191.28,191.26,7.21549642]
[1753670418149,6.85465369,191.28,191.26,7.21549642]
[1753670418335,6.3277,191.28,191.23,16.78468397]
[1753670418538,0.67,191.27,191.23,16.78468397]
[1753670418964,6.3277,191.28,191.23,16.78468397]
[1753670419263,6.9977,191.28,191.27,7.21549642]
[1753670419638,6.3277,191.28,191.27,7.21549642]
[1753670419854,1.29695369,191.31,191.27,7.21549642]
[1753670420057,0.77,191.31,191.29,7.21549642]
[1753670420248,30.0,191.3,191.29,7.21549642]
[1753670420446,0.1,191.31,191.28,7.21549642]
[1753670420668,1.19695369,191.3,191.25,57.06468397]
[1753670420873,0.67,191.29,191.27,7.21549642]
[1753670421080,0.67,191.28,191.27,7.21549642]
[1753670421466,0.67,191.28,191.26,7.21549642]
[1753670421664,5.75441573,191.3,191.26,7.21549642]
[1753670421875,0.67,191.27,191.26,7.21549642]
[1753670422967,0.67,191.27,191.24,7.21549642]
[1753670423168,0.67,191.27,191.21,88.36]
[1753670423169,6.42543847,191.26,191.23,7.21549642]
[1753670423358,6.42543847,191.26,191.22,7.21549642]
[1753670423359,0.67,191.25,191.22,7.21549642]
[1753670423562,0.67,191.24,191.22,7.21549642]
[1753670424490,1.19695369,191.23,191.21,0.06]
[1753670424667,1.19695369,191.23,191.21,7.27549642]
[1753670425382,1.21695369,191.26,191.21,0.06]
[1753670425587,0.69,191.25,191.21,0.06]
[1753670425888,0.14216157,191.3,191.21,0.06]
[1753670425889,0.52695369,191.3,191.24,7.21549642]
[1753670426063,3.9801557,191.31,191.29,7.21549642]
[1753670426381,1.21695369,191.3,191.24,0.72]
[1753670426584,1.21695369,191.3,191.27,7.21549642]
[1753670426778,0.62695369,191.31,191.29,7.21549642]
[1753670426977,30.0,191.3,191.26,16.78468397]
[1753670427176,30.0,191.3,191.29,7.21549642]
[1753670427484,30.69,191.3,191.28,7.21549642]
[1753670428086,0.69,191.3,191.28,7.21549642]
[1753670428291,5.9174482,191.3,191.27,7.21549642]
[1753670428592,1.21695369,191.29,191.21,0.78]
[1753670428804,1.21695369,191.29,191.25,7.21549642]
[1753670429101,0.69,191.28,191.25,7.21549642]
[1753670429291,0.52695369,191.27,191.25,7.21549642]
[1753670429494,0.69,191.27,191.24,7.21549642]
[1753670429676,0.69,191.26,191.23,24.00018039]
[1753670430379,0.69,191.26,191.21,16.84468397]
[1753670430380,5.91863124,191.26,191.21,16.84468397]
[1753670430580,1.21695369,191.25,191.21,0.06]
[1753670430910,7.21549642,191.22,191.21,0.06]
[1753670431090,7.74245011,191.22,191.21,0.06]
[1753670431286,8.43245011,191.22,191.21,0.06]
[1753670431485,0.52695369,191.22,191.21,0.06]
[1753670431883,30.52695369,191.22,191.21,0.06]
[1753670432423,30.0,191.22,191.21,7.27549642]
[1753670432895,35.22957849,191.22,191.21,0.06]
[1753670433087,36.44653218,191.22,191.21,0.06]
[1753670433610,36.44653218,191.22,191.21,7.27549642]
[1753670433611,30.0,191.22,191.21,7.27549642]
[1753670434113,30.0,191.22,191.21,24.78018039]
[1753670434303,30.0,191.22,191.21,30.01003238]
[1753670434502,0.52695369,191.27,191.22,16.78468397]
[1753670434680,3.89824819,191.27,191.26,7.21549642]
[1753670434881,30.0,191.27,191.26,7.21549642]
[1753670435704,30.52695369,191.27,191.26,7.21549642]
[1753670436212,30.0,191.27,191.26,7.21549642]
[1753670436417,30.52695369,191.27,191.26,7.21549642]
[1753670436590,35.75516511,191.27,191.26,7.21549642]
[1753670436904,5.75516511,191.27,191.26,7.21549642]
[1753670437103,5.75516511,191.27,191.22,57.46468397]
[1753670437304,0.52695369,191.27,191.26,7.21549642]
[1753670437515,11.79617888,191.28,191.26,7.21549642]
[1753670437815,0.52695369,191.3,191.27,7.21549642]
[1753670437998,40.66695369,191.31,191.29,7.21549642]
[1753670438186,30.0,191.3,191.28,0.72]
[1753670438391,30.0,191.3,191.29,7.21549642]
[1753670439301,5.85410074,191.31,191.29,7.21549642]
[1753670439502,5.85410074,191.31,191.3,7.21549642]
[1753670439698,30.62695369,191.31,191.3,7.21549642]
[1753670440110,0.62695369,191.31,191.3,7.21549642]
[1753670440496,5.85407197,191.31,191.3,7.21549642]
[1753670441210,6.54407197,191.31,191.29,7.21549642]
[1753670441418,6.54407197,191.31,191.3,7.21549642]
[1753670441603,35.85407197,191.31,191.3,7.21549642]
[1753670442113,35.85407197,191.31,191.29,7.21549642]
[1753670443198,35.85407197,191.31,191.25,17.50468397]
[1753670443516,35.85407197,191.31,191.3,7.21549642]
[1753670444631,83.53956839,191.31,191.25,7.21549642]
[1753670444805,0.69,191.3,191.25,7.21549642]
[1753670445009,30.52695369,191.29,191.25,7.21549642]
[1753670445215,30.52695369,191.29,191.23,7.21549642]
[1753670445216,0.69,191.28,191.23,7.21549642]
[1753670445427,0.52695369,191.27,191.23,7.21549642]
[1753670445734,7.90549642,191.26,191.21,7.27549642]
[1753670445905,1.21695369,191.25,191.21,7.27549642]
[1753670446236,0.69,191.24,191.21,0.06]
[1753670446446,0.52695369,191.23,191.21,7.27549642]
[1753670446609,0.52695369,191.23,191.22,7.21549642]
[1753670446803,5.7557175,191.25,191.22,7.21549642]
[1753670446999,5.7557175,191.25,191.23,7.21549642]
[1753670447204,0.52695369,191.25,191.24,7.21549642]
[1753670447439,30.52695369,191.25,191.24,7.21549642]
[1753670447610,30.0,191.25,191.24,7.21549642]
[1753670447809,0.52695369,191.28,191.24,7.21549642]
[1753670448013,5.22845763,191.27,191.24,0.72]
[1753670448209,5.22845763,191.27,191.21,5.2898411]
[1753670448210,0.62695369,191.31,191.26,7.21549642]
[1753670448415,30.0,191.27,191.25,16.78468397]
[1753670448644,0.62695369,191.31,191.26,7.21549642]
[1753670448817,0.62695369,191.31,191.3,7.21549642]
[1753670449042,5.85407197,191.31,191.29,7.21549642]
[1753670450138,5.85407197,191.31,191.3,7.21549642]
[1753670450329,35.85407197,191.31,191.3,7.21549642]
[1753670451453,30.62695369,191.31,191.3,7.21549642]
[1753670452626,30.1,191.31,191.3,24.72018039]
[1753670452828,0.1,191.31,191.3,24.72018039]
[1753670453661,0.1,191.31,191.3,30.47031107]
[1753670454459,5.32711828,191.31,191.28,7.21549642]
[1753670454639,0.1,191.31,191.29,7.21549642]
[1753670455030,5.98719411,191.31,191.28,7.21549642]
[1753670455230,0.52695369,191.3,191.28,7.21549642]
[1753670455853,0.1,191.31,191.28,7.21549642]
[1753670456036,0.1,191.31,191.29,7.21549642]
[1753670456238,0.1,191.31,191.28,0.7]
[1753670456557,5.32714912,191.31,191.28,7.21549642]
[1753670456759,0.52695369,191.3,191.28,7.21549642]
[1753670457254,5.32714912,191.31,191.26,0.7]
[1753670457453,5.32714912,191.31,191.28,7.21549642]
[1753670457663,5.32714912,191.31,191.29,7.21549642]
[1753670458045,0.1,191.31,191.29,7.21549642]
[1753670458763,0.1,191.31,191.3,7.21549642]
[1753670458970,0.1,191.31,191.3,7.91549642]
[1753670459149,0.1,191.31,191.3,24.70018039]
[1753670459351,0.1,191.31,191.3,29.92757192]
[1753670459846,0.03,191.35,191.34,16.78468397]
[1753670460047,0.03,191.35,191.34,24.00018039]
[1753670460249,0.03,191.35,191.34,24.70018039]
[1753670460574,0.03,191.35,191.34,7.21549642]
[1753670460950,0.03,191.35,191.34,7.91549642]
[1753670461370,0.03,191.35,191.34,33.91549642]
[1753670462569,0.03,191.35,191.34,55.92647912]
[1753670463145,0.03,191.35,191.34,56.21080226]
[1753670463348,0.03,191.37,191.34,30.21080226]
[1753670463549,0.03,191.37,191.36,25.78740353]
[1753670463958,0.03,191.37,191.36,26.48740353]
[1753670464794,0.03,191.37,191.36,64.72450353]
[1753670465297,0.03,191.37,191.36,24.70018039]
[1753670465599,0.03,191.37,191.36,70.47283128]
[1753670466668,0.03,191.39,191.38,16.78468397]
[1753670466880,0.03,191.39,191.38,24.80702416]
[1753670467088,0.03,191.39,191.38,25.50702416]
[1753670467466,0.03,191.39,191.38,30.73223055]
[1753670468168,0.03,191.39,191.38,49.51673413]
[1753670468366,0.03,191.39,191.38,30.73223055]
[1753670468587,0.03,191.39,191.38,56.73223055]
[1753670468798,0.03,191.39,191.38,50.00018039]
[1753670469113,0.03,191.39,191.38,70.16790741]
[1753670469395,0.1,191.45,191.44,48.29257585]
[1753670469618,0.1,191.5,191.49,16.78468397]
[1753670469907,0.1,191.5,191.49,63.72018039]
[1753670470107,1.28695369,191.5,191.47,7.21549642]
[1753670470269,0.66,191.49,191.45,7.21549642]
[1753670470468,0.52695369,191.48,191.44,7.21549642]
[1753670470665,0.66,191.47,191.42,7.21549642]
[1753670470866,1.18695369,191.46,191.42,7.21549642]
[1753670471089,0.52695369,191.46,191.42,7.21549642]
[1753670471276,0.66,191.45,191.42,7.21549642]
[1753670471475,6.40976788,191.47,191.44,7.21549642]
[1753670471692,5.22281419,191.47,191.45,7.21549642]
[1753670471897,5.88281419,191.47,191.45,7.21549642]
[1753670472207,5.88281419,191.47,191.44,7.21549642]
[1753670472712,5.32197544,191.5,191.46,7.21549642]
[1753670473007,5.84892913,191.5,191.47,7.21549642]
[1753670473215,1.18695369,191.49,191.44,16.78468397]
[1753670473373,0.52695369,191.49,191.44,33.21549642]
[1753670473569,5.2227503,191.47,191.43,7.21549642]
[1753670473793,1.18695369,191.46,191.42,63.70018039]
[1753670473974,0.66,191.45,191.41,7.21549642]
[1753670474187,1.18695369,191.44,191.41,7.21549642]
[1753670474497,0.52695369,191.46,191.42,7.21549642]
[1753670474674,1.18695369,191.46,191.42,7.21549642]
[1753670474881,0.66,191.45,191.42,7.21549642]
[1753670475076,1.18695369,191.44,191.4,65.7]
[1753670475292,0.66,191.44,191.42,7.21549642]
[1753670475670,0.66,191.43,191.41,7.21549642]
[1753670476269,0.52695369,191.44,191.41,7.21549642]
[1753670476465,5.75024958,191.45,191.41,7.21549642]
[1753670477799,0.52695369,191.44,191.41,7.21549642]
[1753670478780,1.18695369,191.44,191.41,7.21549642]
[1753670478983,0.66,191.43,191.34,2.17962987]
[1753670479314,7.21549642,191.4,191.32,16.78468397]
[1753670479598,7.21549642,191.38,191.29,0.7]
[1753670479805,8.40245011,191.37,191.29,0.7]
[1753670480012,7.1199,191.36,191.31,7.21549642]
[1753670480198,0.66,191.38,191.34,7.21549642]
[1753670480698,5.88527673,191.38,191.34,7.21549642]
[1753670480873,0.52695369,191.37,191.34,7.21549642]
[1753670481074,1.18695369,191.37,191.34,7.21549642]
[1753670481319,1.18695369,191.37,191.33,7.21549642]
[1753670481551,0.66,191.36,191.28,0.52279381]
[1753670481830,7.21549642,191.33,191.26,16.78468397]
[1753670482134,7.21549642,191.27,191.23,0.06]
[1753670482341,31.18695369,191.32,191.23,0.06]
[1753670482556,7.21549642,191.25,191.23,0.06]
[1753670482850,7.87549642,191.26,191.23,0.06]
[1753670483050,0.52695369,191.25,191.23,0.06]
[1753670483531,7.74245011,191.25,191.23,0.06]
[1753670483701,8.40245011,191.25,191.23,0.06]
[1753670483900,7.87549642,191.24,191.23,0.06]
[1753670484625,13.104528,191.24,191.23,0.06]
[1753670485618,5.88903158,191.24,191.23,0.06]
[1753670485828,13.104528,191.24,191.23,0.06]
[1753670486428,43.104528,191.24,191.23,0.06]
[1753670486637,30.0,191.24,191.23,0.06]
[1753670486836,30.0,191.24,191.23,7.27549642]
[1753670487143,30.0,191.24,191.23,24.74018039]
[1753670487445,1.21695369,191.3,191.23,24.74018039]
[1753670487618,8.43245011,191.3,191.23,24.74018039]
[1753670487942,8.43245011,191.3,191.25,7.21549642]
[1753670488142,30.0,191.26,191.25,7.21549642]
[1753670488546,0.52695369,191.28,191.25,7.21549642]
[1753670488746,0.52695369,191.29,191.26,7.89549642]
[1753670489156,52.76578687,191.34,191.28,7.21549642]
[1753670489157,0.52695369,191.33,191.28,7.21549642]
[1753670489318,30.0,191.29,191.23,0.74]